[Event "MARCEL 1st Div Ch-League 2019"]
[Site "Dhaka"]
[Date "2019.11.13"]
[Round "2.6"]
[White "Mohammad, Hasan Mia"]
[Black "Sambarta Banerjee"]
[Result "0-1"]
[ECO "E12"]
[WhiteElo "1743"]
[BlackElo "1957"]
[Annotator "NA"]
[PlyCount "95"]
[EventDate "2019.11.12"]
[EventCountry "BAN"]
[SourceTitle "playchess.com"]
[Source "ChessBase"]
[SourceQuality "1"]
[TimeControl "5400+30"]

1. d4 {[%emt 0:00:00]} Nf6 {[%emt 0:00:00]} 2. c4 {[%emt 0:00:15]} e6 {[%emt 0:01:12]} 3. Nf3 {[%emt 0:02:04]} b6 {[%emt 0:00:17]} 4. a3 {[%emt 1:29:41]} Bb7 {[%emt 0:00:09]} 5. Nc3 {[%emt 0:00:00]} Be7 {[%emt 0:00:14]} 6. d5 {[%emt 0:00:00]} O-O {[%emt 0:05:29]} 7. e4 {[%emt 0:00:00]} exd5 {[%emt 0:00:33]} 8. cxd5 {[%emt 0:00:00]} Re8 {[%emt 0:00:37]} 9. Bd3 {[%emt 0:00:00]} d6 {[%emt 0:07:25]} 10. O-O {[%emt 0:00:00]} Nbd7 {[%emt 0:00:03]} (10... c6 $14) 11. b4 {[%emt 0:00:00]} ({Better is} 11. Nd4 $16) 11... a5 {[%emt 0:02:08]} 12. b5 {[%emt 0:00:00]} Nc5 {[%emt 0:03:13]} 13. Bc2 {[%emt 0:00:00]} (13. Nd4 $14) 13... Nfd7 {[%emt 0:09:36]} (13... Nfxe4 $5 14. Nxe4 Nxe4 $11) 14. Be3 {[%emt 0:00:00]} Bf6 {[%emt 0:01:03]} 15. Bd4 {[%emt 0:00:00]} Qe7 {[%emt 0:01:19]} 16. Re1 {[%emt 0:00:00]} Bc8 $14 {[%emt 0:04:15]} 17. h3 {[%emt 0:00:00]} g6 {[%emt 0:09:28]} 18. a4 {[%emt 0:00:00]} Ne5 {[%emt 0:01:11]} 19. Bxe5 {[%emt 0:00:00]} dxe5 {[%emt 0:00:44]} 20. Rc1 {[%emt 0:00:00]} Bg7 {[%emt 0:00:10]} 21. Qd2 {[%emt 0:00:00]} f5 {[%emt 0:01:29]} 22. Red1 {[%emt 0:00:00]} Qd6 {[%emt 0:02:36]} 23. Qe3 {[%emt 0:00:00]} f4 {[%emt 0:09:57]} 24. Qe2 {[%emt 0:00:00]} Bf8 {[%emt 0:00:07]} 25. Nd2 {[%emt 0:00:00]} Qf6 {[%emt 0:00:04]} 26. Nc4 {[%emt 0:00:00]} Bd6 {[%emt 0:00:09]} 27. Nb1 {[%emt 0:00:00]} Rf8 {[%emt 0:06:21]} 28. f3 {[%emt 0:00:00]} g5 {[%emt 0:00:42]} 29. Nba3 {[%emt 0:00:00]} h5 {[%emt 0:00:07]} 30. Nxd6 {[%emt 0:00:00]} cxd6 {[%emt 0:00:06]} 31. Nc4 {[%emt 0:00:00]} Rb8 {[%emt 0:00:04]} 32. Rd2 {[%emt 0:00:00]} Kg7 {[%emt 0:03:32]} 33. Bd1 {[%emt 0:00:00]} Rh8 {[%emt 0:01:58]} 34. Rc3 {[%emt 0:00:00]} Qg6 {[%emt 0:03:17]} 35. Bc2 {[%emt 0:00:00]} g4 {[%emt 0:01:07]} 36. Kh1 {[%emt 0:00:00]} Kf8 {[%emt 0:02:54]} 37. Qf2 {[%emt 0:00:00]} Ke7 {[%emt 0:03:57]} 38. Nxe5 {[%emt 0:01:29]} dxe5 {[%emt 0:00:47]} 39. Rxc5 {[%emt 0:00:29]} bxc5 {[%emt 0:00:23]} 40. Qxc5+ {[%emt 0:00:10]} Qd6 {[%emt 0:00:13]} 41. Qa7+ {[%emt 0:00:45]} Bd7 {[%emt 0:01:26]} 42. Qxa5 {[%emt 0:00:25]} Rhc8 {[%emt 0:00:14]} 43. Re2 {[%emt 0:02:32]} Ra8 {[%emt 0:03:22]} 44. Qe1 {[%emt 0:00:48]} g3 {[%emt 0:00:24]} 45. Qb1 {[%emt 0:01:31]} Rc4 {[%emt 0:01:17]} 46. Bb3 {[%emt 0:06:28]} Rc3 {[%emt 0:00:38]} 47. Rc2 {[%emt 0:00:56]} Rac8 {[%emt 0:17:13]} 48. Kg1 {[%emt 0:06:27]} 0-1

[Event "MARCEL 1st Div Ch-League 2019"]
[Site "Dhaka"]
[Date "2019.11.13"]
[Round "2.7"]
[White "Suvankar Maity"]
[Black "Mohammad Salman, Munshi"]
[Result "1-0"]
[ECO "B09"]
[WhiteElo "1795"]
[BlackElo "1593"]
[Annotator "NA"]
[PlyCount "42"]
[EventDate "2019.11.12"]
[EventCountry "BAN"]
[SourceTitle "playchess.com"]
[Source "ChessBase"]
[SourceQuality "1"]
[TimeControl "5400+30"]

1. e4 {[%emt 0:00:00]} d6 2. d4 {[%emt 1:31:00]} Nf6 {[%emt 1:31:00]} 3. Nc3 {[%emt 0:00:00]} g6 {[%emt 0:00:00]} 4. f4 {[%emt 0:00:00]} Bg7 {[%emt 0:01:00]} 5. Nf3 {[%emt 0:00:00]} O-O {[%emt 0:00:00]} 6. e5 dxe5 {[%emt 0:01:00]} 7. fxe5 {[%emt 0:00:00]} Nd5 {[%emt 0:00:00]} 8. Ne4 {[%emt 0:00:00]} Bg4 {[%emt 0:00:00]} 9. Be2 {[%emt 0:00:00]} Nc6 {[%emt 0:00:00]} 10. c3 {[%emt 0:00:00]} Kh8 {[%emt 0:00:00]} 11. O-O {[%emt 0:00:00]} f6 {[%emt 0:00:00]} 12. exf6 {[%emt 0:00:00]} exf6 {[%emt 0:00:00]} 13. h3 {[%emt 0:00:00]} Bc8 {[%emt 0:00:00]} 14. c4 {[%emt 0:00:00]} Nde7 {[%emt 0:00:00]} 15. d5 {[%emt 0:00:00]} Nb4 {[%emt 0:00:00]} 16. Bd2 {[%emt 0:00:00]} Na6 {[%emt 0:00:00]} 17. Bc3 {[%emt 0:00:00]} Nf5 {[%emt 0:00:00]} 18. Qd3 {[%emt 0:00:00]} Qe7 {[%emt 0:00:00]} 19. a3 {[%emt 0:00:00]} Re8 {[%emt 0:06:30]} 20. Rfe1 {[%emt 0:09:00]} Qxe4 {[%emt 0:00:00]} 21. Bf1 {[%emt 0:00:00]} Ne3 {[%emt 0:00:00]} 1-0

[Event "MARCEL 1st Div Ch-League 2019"]
[Site "Dhaka"]
[Date "2019.11.13"]
[Round "2.8"]
[White "Nasim Hossain, Bhuiyan"]
[Black "Parvej, Nahid Sagar"]
[Result "1/2-1/2"]
[ECO "D48"]
[WhiteElo "1801"]
[BlackElo "1976"]
[Annotator "NA"]
[PlyCount "97"]
[EventDate "2019.11.12"]
[EventCountry "BAN"]
[SourceTitle "playchess.com"]
[Source "ChessBase"]
[SourceQuality "1"]
[TimeControl "5400+30"]

1. c4 {[%emt 0:20:37]} e6 {[%emt 0:00:00]} 2. Nf3 {[%emt 0:00:04]} d5 {[%emt 0:00:00]} 3. e3 {[%emt 0:00:13]} Nf6 {[%emt 0:00:13]} 4. Nc3 {[%emt 0:00:09]} c6 {[%emt 0:00:10]} 5. d4 {[%emt 1:11:27]} Nbd7 {[%emt 0:01:41]} 6. Bd3 {[%emt 0:00:00]} dxc4 {[%emt 0:00:52]} 7. Bxc4 {[%emt 0:00:00]} b5 {[%emt 0:00:17]} 8. Bd3 {[%emt 0:00:00]} Bb7 {[%emt 0:00:01]} 9. O-O {[%emt 0:00:00]} a6 {[%emt 0:00:05]} 10. Qe2 $146 {[%emt 0:00:00] D48: Semi-Slav: Meran System: 7...b5 8 Bd3 a6} (10. e4 c5 11. d5 c4 12. Bc2 Qc7 13. dxe6 fxe6 14. Ne2 Nc5 15. Bf4 Qd7 16. Qxd7+ Nfxd7 17. Ned4 Be7 18. b4 cxb3 19. axb3 b4 20. Rfe1 O-O 21. Bc7 g6 {½-½ (40) Radjabov,T (2748)-Karjakin,S (2778) Shamkir 2018}) 10... c5 {[%emt 0:03:25]} 11. e4 {[%emt 0:00:00]} c4 {[%emt 0:01:20]} (11... cxd4 $15 12. Nxd4 b4) 12. Bc2 {[%emt 0:00:00]} Be7 {[%emt 0:00:07]} 13. d5 {[%emt 0:00:00]} exd5 {[%emt 0:00:39]} 14. e5 {[%emt 0:00:00]} Ne4 {[%emt 0:04:22]} 15. Nxe4 {[%emt 0:00:00]} dxe4 {[%emt 0:00:19]} 16. Bxe4 {[%emt 0:00:00]} Bxe4 {[%emt 0:00:28]} 17. Qxe4 {[%emt 0:00:00]} O-O {[%emt 0:00:25]} (17... Nc5 $5 {[%cal Rc5e4]} 18. Qg4 O-O $11) 18. Be3 {[%emt 0:00:00]} Nc5 {[%emt 0:05:39]} 19. Qg4 {[%emt 0:00:00]} (19. Bxc5 $5 Bxc5 20. Rad1 $11) 19... Qc8 {[%emt 0:09:47]} 20. Qh5 $17 {[%emt 0:00:00]} (20. Qg3 $142) 20... Ne6 {[%emt 0:05:02]} 21. Nd2 {[%emt 0:00:00]} Bc5 {[%emt 0:06:38]} 22. Rae1 {[%emt 0:00:00]} Qc6 {[%emt 0:03:39]} 23. Qg4 {[%emt 0:00:00]} Bb4 {[%emt 0:05:42]} 24. a3 {[%emt 0:00:00]} Bxd2 {[%emt 0:06:58]} 25. Bxd2 {[%emt 0:00:00]} Nc5 {[%emt 0:03:57]} 26. Re3 {[%emt 0:00:00]} Qe6 {[%emt 0:05:34]} 27. Qe2 {[%emt 0:00:00]} Rfd8 {[%emt 0:01:39]} 28. f4 {[%emt 0:00:00]} Qf5 {[%emt 0:04:23]} 29. Bc3 {[%emt 0:00:00]} Na4 {[%emt 0:02:13]} 30. Bb4 {[%emt 0:00:00]} Rd3 {[%emt 0:03:02]} 31. b3 {[%emt 0:00:00]} Rxe3 {[%emt 0:01:23]} 32. Qxe3 {[%emt 0:00:00]} cxb3 {[%emt 0:01:26]} 33. Qxb3 {[%emt 0:00:00]} Rc8 {[%emt 0:01:19]} 34. Qf3 {[%emt 0:00:00]} h6 {[%emt 0:01:38]} 35. g4 {[%emt 0:00:00]} Qe6 {[%emt 0:04:16]} 36. Bd6 {[%emt 0:00:00]} Nc3 {[%emt 0:04:15]} 37. f5 {[%emt 0:00:00]} Qc4 {[%emt 0:01:19]} 38. Re1 {[%emt 0:00:00]} Qd4+ {[%emt 0:01:10]} 39. Kh1 {[%emt 0:00:00]} a5 {[%emt 0:14:07]} 40. h3 {[%emt 0:00:00]} Qd2 {[%emt 0:00:00]} 41. Qe3 {[%emt 0:00:00]} Qd5+ {[%emt 0:00:00]} 42. Kg1 {[%emt 0:00:00]} Na4 {[%emt 0:00:00]} 43. Qe4 {[%emt 0:00:00]} Qd2 {[%emt 0:00:00]} 44. Qe2 {[%emt 0:00:00]} Qd4+ {[%emt 0:00:00]} 45. Qe3 {[%emt 0:00:00]} Qd5 {[%emt 0:00:00]} 46. Qe4 {[%emt 0:00:00]} Qd2 {[%emt 0:00:00]} 47. Qe2 {[%emt 0:00:00]} Qd4+ {[%emt 0:00:00]} 48. Qe3 {[%emt 0:00:00]} Qd5 {[%emt 0:00:08]} 49. Qe4 {[%emt 0:22:00]} 1/2-1/2

[Event "MARCEL 1st Div Ch-League 2019"]
[Site "Dhaka"]
[Date "2019.11.13"]
[Round "2.9"]
[White "Singh, Soram Rahul"]
[Black "Md Emdadul, Haque"]
[Result "1-0"]
[ECO "D36"]
[WhiteElo "2104"]
[BlackElo "2070"]
[Annotator "NA"]
[PlyCount "87"]
[EventDate "2019.11.12"]
[EventCountry "BAN"]
[SourceTitle "playchess.com"]
[Source "ChessBase"]
[SourceQuality "1"]
[TimeControl "5400+30"]

1. d4 {[%emt 0:00:00]} Nf6 {[%emt 0:00:00]} 2. c4 {[%emt 0:00:00]} e6 {[%emt 0:00:05]} 3. Nc3 {[%emt 0:00:43]} d5 {[%emt 0:00:12]} 4. cxd5 {[%emt 0:00:23]} exd5 {[%emt 0:00:38]} 5. Bg5 {[%emt 0:00:14]} Be7 {[%emt 0:01:30]} 6. e3 {[%emt 0:00:14]} c6 {[%emt 0:02:12]} 7. Bd3 {[%emt 0:00:15]} h6 {[%emt 0:01:31]} 8. Bh4 {[%emt 0:00:20]} O-O {[%emt 0:00:34]} 9. Qc2 {[%emt 0:00:11]} Nbd7 {[%emt 0:07:18]} 10. Nge2 {[%emt 0:00:21]} Re8 {[%emt 0:02:02]} 11. O-O {[%emt 0:00:22]} Nf8 {[%emt 0:03:30]} 12. f3 {[%emt 0:00:27]} Ne6 {[%emt 0:17:12]} 13. Rad1 {[%emt 0:01:10]} a6 {[%emt 0:04:43] D36: Queen's Gambit Declined: Exchange Variation: Main line (5 Bg5 c6 6 Qc2)} 14. h3 {[%emt 0:07:09] [#]} g5 $146 {[%emt 0:08:41]} (14... Nh5 $11 {remains equal.} 15. Bxe7 Qxe7) ({Predecessor:} 14... b5 15. a3 a5 16. Na2 Bd7 17. e4 Nh5 {0-1 (63) Richter,M (2421)-Jussupow,A (2570) Germany 2009}) 15. Bf2 $16 {[%emt 0:00:58]} Ng7 {[%emt 0:01:05]} 16. e4 {[%emt 0:04:59]} dxe4 {[%emt 0:06:52]} 17. fxe4 {[%emt 0:01:03]} g4 {[%emt 0:01:21]} 18. e5 {[%emt 0:03:01]} Nd5 {[%emt 0:03:09]} 19. Nxd5 {[%emt 0:00:42]} cxd5 {[%emt 0:01:06]} 20. Be3 {[%emt 0:04:25]} Bg5 {[%emt 0:01:45]} 21. Bh7+ {[%emt 0:07:50]} Kh8 {[%emt 0:02:46]} 22. Bxg5 {[%emt 0:02:54]} Qxg5 {[%emt 0:00:11]} 23. Rxf7 {[%emt 0:01:09]} Be6 {[%emt 0:02:54]} 24. Rf2 {[%emt 0:07:03]} Rf8 {[%emt 0:04:42]} 25. Rdf1 {[%emt 0:01:16]} Rxf2 {[%emt 0:05:46]} 26. Rxf2 {[%emt 0:00:14]} Qe3 {[%emt 0:00:57]} 27. Qd3 {[%emt 0:10:34]} Qxd3 {[%emt 0:09:29]} 28. Bxd3 {[%emt 0:00:07]} gxh3 {[%emt 0:00:48]} 29. gxh3 {[%emt 0:00:11]} Nh5 {[%emt 0:02:49]} 30. Kh2 {[%emt 0:00:46]} Rg8 {[%emt 0:00:46]} 31. Nf4 {[%emt 0:03:55]} Nxf4 {[%emt 0:04:17]} 32. Rxf4 {[%emt 0:00:02]} Re8 {[%emt 0:01:33]} 33. Rf6 {[%emt 0:00:27]} Kg7 {[%emt 0:01:08]} 34. Rg6+ {[%emt 0:00:06]} Kf7 {[%emt 0:00:35]} 35. Rxh6 {[%emt 0:00:14]} Rg8 {[%emt 0:00:29]} 36. Rh7+ {[%emt 0:00:22]} Rg7 {[%emt 0:00:27]} 37. Rxg7+ {[%emt 0:00:12]} Kxg7 {[%emt 0:00:06]} 38. Kg3 {[%emt 0:00:36]} Kh6 {[%emt 0:00:15]} 39. Be2 {[%emt 0:00:10]} Kg6 {[%emt 0:01:41]} 40. Bg4 {[%emt 0:00:08]} Bg8 {[%emt 0:00:55]} 41. Kf4 {[%emt 0:00:12]} b6 {[%emt 0:00:12]} 42. h4 {[%emt 0:00:11]} a5 {[%emt 0:00:25]} 43. h5+ {[%emt 0:00:12]} Kf7 {[%emt 0:00:12]} 44. Bf5 {[%emt 0:00:10]} 1-0

[Event "MARCEL 1st Div Ch-League 2019"]
[Site "Dhaka"]
[Date "2019.11.13"]
[Round "2.11"]
[White "Apollosana Mangang, Rajkumar"]
[Black "Bhuiyan, Golam Mostafa"]
[Result "1-0"]
[ECO "B49"]
[WhiteElo "2078"]
[BlackElo "2060"]
[Annotator "NA"]
[PlyCount "55"]
[EventDate "2019.11.12"]
[EventCountry "BAN"]
[SourceTitle "playchess.com"]
[Source "ChessBase"]
[SourceQuality "1"]
[TimeControl "5400+30"]

1. e4 {[%emt 1:30:30]} c5 {[%emt 1:30:30]} 2. Nf3 {[%emt 0:00:30]} Nc6 {[%emt 0:00:30]} 3. d4 {[%emt 0:00:30]} cxd4 {[%emt 0:00:30]} 4. Nxd4 {[%emt 0:00:30]} Qc7 {[%emt 0:00:30]} 5. Nc3 {[%emt 0:00:30]} e6 $1 {[%emt 0:00:30]} 6. Be2 {[%emt 0:00:30]} a6 {[%emt 0:00:30]} 7. O-O {[%emt 0:00:30]} Nf6 {[%emt 0:00:30]} 8. Be3 {[%emt 0:00:30]} Bb4 {[%emt 0:00:30]} 9. Nxc6 {[%emt 0:00:30]} bxc6 {[%emt 0:00:30]} 10. Na4 {[%emt 0:00:30]} Be7 {[%emt 0:00:30]} 11. Qd4 {[%emt 0:00:30]} Rb8 {[%emt 0:00:30]} 12. c4 {[%emt 0:00:30]} c5 {[%emt 0:00:30]} 13. Qd3 {[%emt 0:00:30]} ({Not} 13. Nxc5 $2 e5 $19) 13... Bb7 {[%emt 0:00:30]} 14. Nc3 {[%emt 0:00:30]} Bc6 {[%emt 0:00:30]} 15. b3 {[%emt 0:00:30]} d6 {[%emt 0:00:30]} 16. Bf4 {[%emt 0:00:30]} Nd7 $14 {[%emt 0:00:30]} 17. Qg3 {[%emt 0:00:30]} g5 {[%emt 0:00:30]} 18. Bd2 {[%emt 0:00:30]} h5 {[%emt 0:00:30]} 19. f4 {[%emt 0:00:30]} g4 {[%emt 0:00:30]} 20. Bd3 {[%emt 0:00:30]} Bf6 {[%emt 0:00:30]} 21. e5 {[%emt 0:00:30]} dxe5 {[%emt 0:00:30]} 22. f5 {[%emt 0:00:30]} h4 {[%emt 0:00:30]} 23. Qxg4 {[%emt 0:00:30]} Ke7 {[%emt 0:00:30]} 24. Be4 {[%emt 0:00:30]} Rhf8 {[%emt 0:00:30]} 25. Rad1 {[%emt 0:00:30]} Rbc8 {[%emt 0:00:30]} 26. Bh6 {[%emt 0:00:30]} Rh8 {[%emt 0:00:30]} 27. fxe6 {[%emt 0:00:30]} fxe6 {[%emt 0:00:30]} 28. Rxf6 {[%emt 0:00:30]} 1-0

[Event "MARCEL 1st Div Ch-League 2019"]
[Site "Dhaka"]
[Date "2019.11.13"]
[Round "2.12"]
[White "Islam, Mohammad Aminul"]
[Black "Hasan Md, Emam"]
[Result "1/2-1/2"]
[ECO "A29"]
[WhiteElo "2078"]
[BlackElo "2046"]
[Annotator "NA"]
[PlyCount "95"]
[EventDate "2019.11.12"]
[EventCountry "BAN"]
[SourceTitle "playchess.com"]
[Source "ChessBase"]
[SourceQuality "1"]
[TimeControl "5400+30"]

1. c4 {[%emt 1:30:30]} Nf6 {[%emt 1:30:30]} 2. Nc3 {[%emt 0:00:30]} e5 {[%emt 0:00:30]} 3. g3 {[%emt 0:00:30]} Nc6 {[%emt 0:00:30]} 4. Bg2 {[%emt 0:00:30]} g6 {[%emt 0:00:30]} 5. Nf3 {[%emt 0:00:30]} Bg7 {[%emt 0:01:00]} 6. O-O {[%emt 0:00:30]} O-O {[%emt 0:00:30]} 7. d3 {[%emt 0:00:30]} h6 {[%emt 0:00:30]} 8. Bd2 {[%emt 0:00:30]} Re8 {[%emt 0:01:00]} 9. Rb1 {[%emt 0:00:30]} d6 {[%emt 0:00:30]} 10. b4 {[%emt 0:00:30]} Nd4 {[%emt 0:00:30]} 11. e3 {[%emt 0:00:30]} Nc6 {[%emt 0:00:30]} 12. b5 {[%emt 0:00:30]} Ne7 {[%emt 0:00:30]} 13. e4 $14 {[%emt 0:00:30]} Nd7 {[%emt 0:00:30]} 14. Be3 {[%emt 0:00:30]} Kh7 {[%emt 0:00:30]} 15. d4 {[%emt 0:00:30]} Nb6 {[%emt 0:00:30]} 16. Qb3 {[%emt 0:00:30]} Be6 {[%emt 0:00:30]} 17. d5 {[%emt 0:00:30]} Bc8 {[%emt 0:00:30]} 18. c5 {[%emt 0:00:30]} dxc5 19. Bxc5 f5 {[%emt 0:01:00]} 20. Rbd1 {[%emt 0:01:00]} fxe4 21. Nxe4 Nf5 {[%emt 0:01:00]} 22. a4 {[%emt 0:01:00]} Nd6 {[%emt 0:00:30]} 23. Nxd6 cxd6 24. Bb4 {[%emt 0:01:00]} Qf6 {[%emt 0:01:00]} 25. Nd2 {[%emt 0:00:30]} Bf5 {[%emt 0:00:30]} 26. Ne4 {[%emt 0:00:30]} Bxe4 27. Bxe4 Nd7 {[%emt 0:01:00]} 28. Qa3 {[%emt 0:01:00]} Bf8 {[%emt 0:00:30]} 29. h4 {[%emt 0:00:30]} Kg7 {[%emt 0:00:30]} 30. Rd3 {[%emt 0:00:30]} Nc5 {[%emt 0:00:30]} 31. Rf3 {[%emt 0:00:30]} Qe7 {[%emt 0:00:30]} 32. Bxc5 dxc5 33. Qd3 {[%emt 0:01:00]} Qd6 {[%emt 0:01:00]} 34. h5 {[%emt 0:00:30]} gxh5 {[%emt 0:00:30]} 35. Rf5 {[%emt 0:00:30]} Be7 {[%emt 0:00:30]} 36. Rxh5 {[%emt 0:00:30]} Rf8 {[%emt 0:00:30]} 37. Kg2 {[%emt 0:00:30]} Bg5 {[%emt 0:00:30]} 38. Rfh1 {[%emt 0:00:30]} Qf6 {[%emt 0:00:30]} 39. f3 {[%emt 0:00:30]} Rac8 {[%emt 0:00:30]} 40. Qc4 {[%emt 0:00:30]} b6 {[%emt 0:00:30]} 41. Kf2 {[%emt 0:00:30]} Rcd8 {[%emt 0:00:30]} 42. Kg2 {[%emt 0:00:30]} Rd7 {[%emt 0:00:30]} 43. Qc2 {[%emt 0:00:30]} Rdf7 {[%emt 0:00:30]} 44. Qe2 {[%emt 0:00:30]} Rc8 {[%emt 0:00:30]} 45. Qc4 {[%emt 0:00:30]} Rcf8 {[%emt 0:00:30]} 46. Qe2 Rc8 {[%emt 0:00:30]} 47. Qc4 {[%emt 0:01:00]} Rcf8 48. Qe2 {[%emt 0:00:30]} 1/2-1/2

[Event "MARCEL 1st Div Ch-League 2019"]
[Site "Dhaka"]
[Date "2019.11.14"]
[Round "3.1"]
[White "Md Shawkat Ali Sheikh"]
[Black "Suvradeepta, Das"]
[Result "0-1"]
[ECO "B06"]
[WhiteElo "1851"]
[BlackElo "1997"]
[Annotator "NA RC"]
[PlyCount "76"]
[EventDate "2019.11.12"]
[EventCountry "BAN"]
[SourceTitle "playchess.com"]
[Source "ChessBase"]
[SourceQuality "1"]
[TimeControl "5400+30"]

{[%evp 8,61,58,64,65,68,64,63,72,63,41,63,65,45,40,17,29,14,68,55,54,49,43,8,21,6,6,0,25,15,54,30,77,10,6,6,-3,0,19,-9,-19,-41,-11,-9,-11,-12,0,-95,-68,-118,-69,-117,-147,-187,-151,-174]} 1. e4 {[%emt 0:00:00]} g6 {[%emt 0:00:00]} 2. d4 {[%emt 0:00:38]} Bg7 {[%emt 0:00:00]} 3. Nf3 {[%emt 0:00:47]} c6 {[%emt 0:00:13]} 4. Be2 {[%emt 0:00:52]} Nf6 {[%emt 0:01:02]} 5. e5 {[%emt 0:00:45]} Nd5 {[%emt 0:00:02]} 6. c4 {[%emt 0:06:15] B06: Modern Defence} Nb6 $146 {[%emt 0:00:13]} ({Predecessor:} 6... Nc7 7. Nc3 d5 8. exd6 Qxd6 9. O-O Bf5 10. Be3 Nba6 11. a3 O-O 12. Qd2 Rfd8 13. Rad1 Ne6 {0-1 (81) Grgurevic,B (2228)-Tomerlin,S (2313) Sibenik 2009}) 7. Nc3 {[%emt 0:01:18]} O-O {[%emt 1:32:00]} 8. c5 {[%emt 0:02:39]} Nd5 {[%emt 0:00:00]} 9. Nxd5 {[%emt 0:00:32]} cxd5 {[%emt 0:00:00]} 10. O-O {[%emt 1:21:14]} d6 {[%emt 0:00:00]} 11. cxd6 {[%emt 0:00:00]} exd6 {[%emt 0:00:00]} 12. Bg5 {[%emt 0:00:00]} Qd7 {[%emt 0:00:00]} 13. Qd2 {[%emt 0:00:00]} dxe5 {[%emt 0:00:00]} 14. dxe5 {[%emt 0:00:00]} Nc6 {[%emt 0:00:00]} 15. Bh6 {[%emt 0:00:00]} Qe6 {[%emt 0:00:00]} 16. Bxg7 {[%emt 0:00:00]} Kxg7 {[%emt 0:00:00]} 17. Rfd1 {[%emt 0:00:00]} Rd8 {[%emt 0:00:00]} 18. Qf4 {[%emt 0:00:00]} h6 {[%emt 0:00:00]} 19. h3 {[%emt 0:00:00]} Qf5 {[%emt 0:00:00]} 20. Qxf5 {[%emt 0:00:00]} (20. Qg3 $14) 20... Bxf5 {[%emt 0:00:00]} 21. Bb5 {[%emt 0:00:00]} Be4 {[%emt 0:00:00]} 22. Bxc6 {[%emt 0:00:00]} bxc6 {[%emt 0:00:00]} 23. Ne1 {[%emt 0:00:00]} c5 {[%emt 0:00:00]} 24. Rd2 {[%emt 0:00:00]} d4 {[%emt 0:00:00]} 25. Rc1 {[%emt 0:00:00]} Rac8 {[%emt 0:00:00]} 26. f3 {[%emt 0:00:00]} Bf5 {[%emt 0:00:00]} 27. a3 {[%emt 0:00:00]} (27. g4 $11 {remains equal.} Bd7 28. b3) 27... g5 {[%emt 0:00:00]} 28. g3 {[%emt 0:00:00]} ({White should play} 28. g4 $15 Bg6 29. Ng2) 28... Rd5 {[%emt 0:00:00]} 29. f4 {[%emt 0:00:00]} Bxh3 {[%emt 0:00:00]} 30. Nf3 {[%emt 0:00:00]} Kg6 {[%emt 0:00:00]} 31. b4 $19 {[%emt 0:00:31]} cxb4 {[%emt 0:00:00]} 32. Rxc8 {[%emt 0:01:35]} Bxc8 {[%emt 0:00:00]} 33. axb4 {[%emt 0:00:22]} gxf4 {[%emt 0:00:00]} 34. gxf4 {[%emt 0:00:34]} Kf5 {[%emt 0:00:00]} 35. Rxd4 {[%emt 0:00:32]} Rxd4 {[%emt 0:00:00]} 36. Nxd4+ {[%emt 0:00:02]} Kxf4 {[%emt 0:00:00]} 37. Nc6 {[%emt 0:00:27]} a6 {[%emt 0:00:00]} 38. Kh2 {[%emt 0:02:04]} Bb7 {[%emt 0:00:00]} 0-1

[Event "MARCEL 1st Div Ch-League 2019"]
[Site "Dhaka"]
[Date "2019.11.14"]
[Round "3.2"]
[White "Sarbojit Paul"]
[Black "Moniruzzaman, Masud"]
[Result "1-0"]
[ECO "B01"]
[WhiteElo "2074"]
[BlackElo "1828"]
[Annotator "NA RC"]
[PlyCount "67"]
[EventDate "2019.11.12"]
[EventCountry "BAN"]
[SourceTitle "playchess.com"]
[Source "ChessBase"]
[SourceQuality "1"]
[TimeControl "5400+30"]

{[%evp 8,67,70,26,37,24,43,30,37,22,37,-2,58,51,89,53,71,8,16,31,12,9,56,8,25,0,-3,-12,-2,-56,-35,-14,-19,-26,-17,-20,-37,-24,-6,-42,-33,-47,-19,-35,66,37,33,28,54,42,33,30,130,120,661,1139,2881,1723,4818,29981,29981,29982]} 1. e4 {[%emt 0:00:41]} d5 {[%emt 0:00:00]} 2. exd5 {[%emt 0:01:04]} Qxd5 {[%emt 0:02:01]} 3. Nc3 {[%emt 0:00:38]} Qd6 {[%emt 0:00:40]} 4. d4 {[%emt 0:00:24]} a6 {[%emt 0:01:54]} 5. h3 {[%emt 0:02:04]} Nf6 {[%emt 0:01:44]} 6. Nf3 {[%emt 0:00:28]} Bf5 {[%emt 0:00:43]} 7. Be3 {[%emt 0:11:06] B01: Scandinavian Defence} (7. Bc4 e6 8. O-O Nc6 9. Re1 Be7 10. Bg5 Rd8 11. Qe2 Nxd4 12. Nxd4 Qxd4 13. Rad1 Qc5 14. Rxd8+ Bxd8 15. Bxf6 Bxf6 {0-1 (61) Deszczynski,A (2348)-Gashimov,V (2608) Warsaw 2005}) 7... Nc6 {[%emt 0:02:27]} 8. a3 {[%emt 0:01:55]} e6 {[%emt 0:02:50]} 9. g3 $146 {[%emt 0:01:56]} ({Predecessor:} 9. Bd3 Bxd3 10. Qxd3 Be7 11. O-O h6 12. b4 {½-½ (12) Knauer,M (1596)-Jacob,K (1690) Schney 2019}) 9... Qd8 {[%emt 0:02:37]} (9... O-O-O $11) 10. Bg2 {[%emt 0:00:40]} Be7 {[%emt 0:03:17]} 11. Ne5 {[%emt 0:05:28]} Nd5 {[%emt 0:02:26]} 12. Nxc6 {[%emt 0:07:22]} bxc6 {[%emt 0:00:17]} 13. Bd2 {[%emt 0:01:26]} O-O {[%emt 0:00:55]} 14. O-O {[%emt 0:05:51]} c5 {[%emt 0:01:43]} 15. g4 {[%emt 0:06:48]} Bg6 {[%emt 0:01:04]} 16. f4 {[%emt 0:01:35]} f5 $1 {[%emt 0:01:15]} 17. Nxd5 {[%emt 0:09:35]} exd5 {[%emt 0:01:32]} 18. c3 {[%emt 0:01:56]} cxd4 {[%emt 0:00:53]} 19. cxd4 {[%emt 0:00:23]} Rb8 {[%emt 0:00:24]} 20. b4 {[%emt 0:00:52]} fxg4 {[%emt 0:01:03]} 21. hxg4 {[%emt 0:00:47]} Be4 {[%emt 0:00:41]} 22. Qe2 {[%emt 0:04:42]} Bf6 {[%emt 0:01:37]} 23. Bc3 {[%emt 0:00:48]} Bxg2 {[%emt 0:03:23]} 24. Qxg2 {[%emt 0:02:56]} h6 {[%emt 0:01:13]} 25. Rae1 {[%emt 0:01:13]} a5 {[%emt 0:02:24] [#]} (25... Rb6 $11) 26. g5 $1 {[%emt 0:07:34]} hxg5 {[%emt 0:00:32]} 27. fxg5 {[%emt 0:00:04]} Bxg5 {[%emt 0:01:49]} 28. Rxf8+ {[%emt 0:01:54]} Kxf8 {[%emt 0:00:20]} 29. bxa5 {[%emt 0:03:33]} Rb3 {[%emt 0:07:02]} (29... Kg8 $11 {keeps the balance.}) 30. Qc2 {[%emt 0:01:04]} Rxc3 $4 {[%emt 0:03:50]} (30... Rb8 $16) 31. Qxc3 {[%emt 0:02:11]} Bf4 {[%emt 0:02:15]} 32. Qf3 {[%emt 0:03:14]} Qh4 {[%emt 0:03:46] [#]} 33. Qxf4+ $3 {[%emt 0:00:26]} Qxf4 {[%emt 0:29:06] [#]} 34. Rf1 {[%emt 0:00:07]} 1-0